fUSD/lending_fUSD_20250610
["ID","MTS","AMOUNT","RATE_DAILY","PERIOD"]
[365224485,1749547834472,-490.0,0.00016767,2]
[365224486,1749547834481,-490.0,0.00016767,2]
[365224487,1749547834490,-575.02,0.00016767,2]
[365224488,1749547834500,-490.0,0.00016767,2]
[365224489,1749547834509,-247.24,0.00016767,2]
[365224490,1749547834519,-163.25,0.00016778,2]
[365224491,1749547834528,-301.1,0.00016778,2]
[365224492,1749547834538,-150.0,0.00016878,2]
[365224493,1749547834547,-150.0,0.00016878,2]
[365224494,1749547834556,-150.0,0.00016878,2]
[365224495,1749547834566,-150.0,0.00016878,2]
[365224496,1749547834575,-150.0,0.00016878,2]
[365224497,1749547834585,-150.0,0.00016878,2]
[365224498,1749547834595,-150.0,0.00016878,2]
[365224499,1749547834604,-150.0,0.00016878,2]
[365224500,1749547834613,-150.0,0.00016878,2]
[365224501,1749547834622,-150.0,0.00016878,2]
[365224502,1749547834632,-150.0,0.00016878,2]
[365224503,1749547834641,-150.0,0.00016878,2]
[365224504,1749547834652,-447.0,0.00016923,4]
[365224505,1749547834662,-490.0,0.00016931,2]
[365224506,1749547834672,-269.77,0.00016931,2]
[365224507,1749547834683,-490.0,0.00016931,2]
[365224508,1749547834694,-499.49,0.00016931,2]
[365224509,1749547834703,-324.6,0.00016931,2]
[365224510,1749547834713,-348.76,0.00016931,2]
[365224511,1749547834723,-394.6275,0.00016931,2]
[365224512,1749547834733,-578.67,0.00016931,2]
[365224513,1749547834743,-456.31,0.00016931,2]
[365224514,1749547834753,-490.0,0.00016931,2]
[365224515,1749547834766,-378.92,0.00016931,2]
[365224516,1749547834776,-163.12,0.00016931,2]
[365224517,1749547834785,-454.39,0.00016978,2]
[365224518,1749547834795,-151.0,0.00016982,2]
[365224519,1749547834805,-300.0,0.00016982,2]
[365224520,1749547834814,-300.0,0.00016982,2]
[365224521,1749547834824,-1000.0,0.00016982,2]
[365224522,1749547834835,-400.0,0.00016982,2]
[365224523,1749547834844,-1957.856,0.00016982,2]
[365224524,1749547834854,-679.67714335,0.00016982,2]
[365224525,1749547834863,-207.4,0.00016982,2]
[365224526,1749547834873,-500.0,0.00016982,2]
[365224527,1749547834883,-500.0,0.00016982,2]
[365224528,1749547834893,-500.0,0.00016982,2]
[365224529,1749547834903,-500.0,0.00016982,2]
[365224530,1749547834912,-500.0,0.00016982,2]
[365224531,1749547834922,-500.0,0.00016982,2]
[365224532,1749547834932,-500.0,0.00016982,2]
[365224533,1749547834943,-500.0,0.00016982,2]
[365224534,1749547834952,-483.1,0.00016982,2]
[365224535,1749547834961,-151.0,0.00016982,2]
[365224536,1749547834971,-151.0,0.00016982,2]
[365224537,1749547834981,-151.0,0.00016982,2]
[365224538,1749547834990,-1461.59,0.00016993,2]
[365224539,1749547834999,-869.55400144,0.00017037,2]
[365224540,1749547835009,-490.0,0.00017095,2]
[365224541,1749547835019,-490.0,0.00017095,2]
[365224542,1749547835029,-490.0,0.00017095,2]
[365224543,1749547835038,-1000.0,0.00017126,2]
[365224544,1749547835048,-1000.0,0.00017126,2]
[365224545,1749547835058,-165.09,0.00017169,2]
[365224546,1749547835067,-490.0,0.0001726,2]
[365224547,1749547835077,-490.0,0.0001726,2]
[365224548,1749547835086,-490.0,0.0001726,2]
[365224549,1749547835095,-447.0,0.00017376,4]
[365224550,1749547835105,-152.0,0.00017383,3]
[365224551,1749547835114,-524.49345727,0.000174,2]
[365224552,1749547835123,-163.53690916,0.000174,2]
[365224553,1749547835132,-1100.0,0.000174,6]
[365224554,1749547835141,-178.9860193,0.00017401,2]
[365224555,1749547835151,-490.0,0.00017424,2]
[365224556,1749547835160,-490.0,0.00017424,2]
[365224557,1749547835170,-490.0,0.00017424,2]
[365224558,1749547835179,-524.49345726,0.00017454,2]
[365224559,1749547835188,-178.98601929,0.00017456,2]
[365224560,1749547835198,-454.78,0.00017495,2]
[365224561,1749547835207,-454.85,0.00017495,2]
[365224562,1749547835217,-2510.84564888,0.00017497,3]
[365224563,1749547835227,-540.34,0.00017499,2]
[365224564,1749547835236,-1001.6933,0.00017499,2]
[365224565,1749547835246,-136032.73009018,0.000175,2]
[365224566,1749547835504,-56725.68252356,0.000175,2]
[365224567,1749547835516,-1835.65720956,0.000175,2]
[365224568,1749547835528,-20890.0,0.000175,2]
[365224569,1749547835544,-1922.62629,0.000175,2]
[365224570,1749547835556,-11301.00341519,0.000175,2]
[365224572,1749547838262,-500.0,0.00016369,2]
[365224573,1749547838273,-500.0,0.00016369,2]
[365224574,1749547838286,-500.0,0.00016369,2]
[365224575,1749547838297,-500.0,0.00016369,2]
[365224576,1749547838309,-483.06198096,0.00016369,2]
[365224577,1749547838323,-14.38209684,0.00016369,2]
[365224578,1749547838335,-500.0,0.00016369,2]
[365224579,1749547838347,-92.08969356,0.00016369,2]
[365224580,1749547838361,-407.91030644,0.00016369,2]
[365224581,1749547838374,-500.0,0.00016369,2]
[365224582,1749547838386,-500.0,0.00016369,2]
[365224583,1749547838398,-500.0,0.00016369,2]
[365224584,1749547838410,-500.0,0.00016369,2]
[365224585,1749547838421,-500.0,0.00016369,2]
[365224586,1749547838433,-500.0,0.00016369,2]
[365224587,1749547838443,-500.0,0.00016369,2]
[365224588,1749547838454,-366.3863196,0.00016369,2]
[365224589,1749547838466,-500.0,0.00016369,2]
[365224590,1749547838478,-500.0,0.00016369,2]
[365224591,1749547838489,-500.0,0.00016369,2]
[365224592,1749547838501,-620.0,0.00016369,2]
[365224593,1749547838512,-500.0,0.00016369,2]
[365224594,1749547838523,-500.0,0.00016369,2]
[365224595,1749547838534,-500.0,0.00016369,2]
[365224596,1749547838546,-240.71564824,0.00016369,2]
[365224597,1749547838561,-259.28435176,0.00016369,2]
[365224598,1749547838572,-340.71564824,0.00016369,2]
[365224599,1749547838591,-159.28435176,0.00016369,2]
[365224600,1749547838603,-328.21564824,0.00016369,2]
[365224688,1749547840392,-171.78435176,0.00016369,2]
[365224689,1749547840404,-500.0,0.00016369,2]
[365224690,1749547840416,-500.0,0.00016369,2]
[365224691,1749547840428,-166.51564825,0.00016369,2]
[365224692,1749547840442,-333.48435175,0.00016369,2]
[365224693,1749547840454,-500.0,0.00016369,2]
[365224694,1749547840467,-500.0,0.00016369,2]
[365224695,1749547840479,-500.0,0.00016369,2]
[365224696,1749547840492,-500.0,0.00016369,2]
[365224697,1749547840504,-435.82742741,0.00016369,2]
[365224698,1749547840516,-500.0,0.00016369,2]
[365224699,1749547840528,-500.0,0.00016369,2]
[365224700,1749547840539,-349.66482084,0.00016369,2]
[365224701,1749547840554,-150.33517916,0.00016369,2]
[365224702,1749547840565,-500.0,0.00016369,2]
[365224703,1749547840576,-500.0,0.00016369,2]
[365224704,1749547840587,-500.0,0.00016369,2]
[365224705,1749547840599,-500.0,0.00016369,2]
[365224706,1749547840610,-500.0,0.00016369,2]
[365224707,1749547840622,-500.0,0.00016369,2]
[365224708,1749547840636,-500.0,0.00016369,2]
[365224709,1749547840648,-179.61653883,0.00016369,2]
[365224710,1749547840660,-500.0,0.00016369,2]
[365224711,1749547840671,-500.0,0.00016369,2]
[365224712,1749547840682,-500.0,0.00016369,2]
[365224713,1749547840693,-500.0,0.00016369,2]
[365224714,1749547840703,-500.0,0.00016369,2]
[365224715,1749547840715,-500.0,0.00016369,2]
[365224716,1749547840727,-500.0,0.00016369,2]
[365224717,1749547840739,-500.0,0.00016369,2]
[365224718,1749547840752,-409.28206074,0.00016369,2]
[365224719,1749547840765,-500.0,0.00016369,2]
[365224720,1749547840777,-500.0,0.00016369,2]
[365224721,1749547840788,-500.0,0.00016369,2]
[365224722,1749547840798,-500.0,0.00016369,2]
[365224723,1749547840810,-500.0,0.00016369,2]
[365224724,1749547840823,-500.0,0.00016369,2]
[365224725,1749547840834,-500.0,0.00016369,2]
[365224726,1749547840846,-500.0,0.00016369,2]
[365224727,1749547840858,-500.0,0.00016369,2]
[365224728,1749547840868,-500.0,0.00016369,2]
[365224729,1749547840878,-500.0,0.00016369,2]
[365224731,1749547840889,-528.68,0.00016438,2]
[365224733,1749547840902,-61440.51507839,0.000175,2]
[365224734,1749547840917,-2200.0,0.000175,6]
[365224735,1749547840928,-524.49345726,0.00017509,2]
[365224736,1749547840939,-178.98601929,0.00017512,2]
[365224737,1749547840950,-833.29909032,0.00017528,2]
[365224738,1749547840962,-524.49345726,0.00017563,2]
[365224739,1749547840973,-178.98601929,0.00017567,2]
[365224740,1749547840984,-490.0,0.00017589,2]
[365224741,1749547840995,-490.0,0.00017589,2]
[365224742,1749547841006,-272.7504,0.00017589,2]
[365224743,1749547841017,-1000.0,0.000176,2]
[365224744,1749547841028,-3300.0,0.000176,6]
[365224745,1749547841039,-524.49345726,0.00017618,2]
[365224746,1749547841050,-178.98601929,0.00017623,2]
[365224747,1749547841061,-888.236417,0.00017629,2]
[365224748,1749547841072,-152.0,0.00017639,4]
[365224749,1749547841083,-168.0,0.00017654,2]
[365224750,1749547841094,-250.0,0.00017665,2]
[365224751,1749547841105,-250.0,0.00017665,2]
[365224752,1749547841116,-600.0,0.00017665,4]
[365224753,1749547841127,-524.49345726,0.00017672,2]
[365224754,1749547841137,-298.33545894,0.00017674,2]
[365224755,1749547841148,-1500.0,0.00017674,2]
[365224756,1749547841159,-178.98601929,0.00017678,2]
[365224757,1749547841171,-980.94485654,0.00017681,2]
[365224758,1749547841182,-4500.0,0.000177,6]
[365224759,1749547841193,-3569.28,0.000177,2]
[365224760,1749547841206,-167.17,0.00017726,2]
[365224761,1749547841217,-524.49345726,0.00017727,2]
[365224762,1749547841228,-178.98601929,0.00017734,2]
[365224763,1749547841239,-1397.0,0.00017743,2]
[365224764,1749547841250,-490.0,0.00017753,2]
[365224765,1749547841261,-490.0,0.00017753,2]
[365224766,1749547841272,-384.66555106,0.00017757,2]
[365224767,1749547841284,-525.64925932,0.0001776,2]
[365224768,1749547841296,-1009.65245314,0.00017763,2]
[365224769,1749547841307,-1009.65245314,0.00017769,2]
[365224770,1749547841317,-336.68587298,0.00017776,2]
[365224771,1749547841328,-524.49345726,0.00017781,2]
[365224772,1749547841339,-178.98601929,0.00017789,2]
[365224773,1749547841350,-336.68587298,0.00017792,2]
[365224774,1749547841361,-325.6,0.000178,2]
[365224775,1749547841373,-5600.0,0.000178,6]
[365224776,1749547841383,-420.0,0.00017806,2]
[365224777,1749547841394,-200.0,0.00017806,2]
[365224778,1749547841406,-500.0,0.00017808,2]
[365224779,1749547841417,-500.0,0.00017808,2]
[365224780,1749547841427,-500.0,0.00017808,2]
[365224781,1749547841438,-500.0,0.00017808,2]
[365224782,1749547841450,-500.0,0.00017808,2]
[365224783,1749547841461,-500.0,0.00017808,2]
[365224784,1749547841472,-500.0,0.00017808,2]
[365224785,1749547841484,-500.0,0.00017808,2]
[365224786,1749547841494,-500.0,0.00017808,2]
[365224787,1749547841505,-500.0,0.00017808,2]
[365224788,1749547841516,-174.92861945,0.00017808,2]
[365224789,1749547841527,-600.0,0.00017808,2]
[365224790,1749547841538,-150.0,0.00017808,2]
[365224791,1749547841548,-700.0,0.00017808,2]
[365224792,1749547841559,-200.0,0.00017808,2]
[365224793,1749547841570,-1185.45,0.00017814,2]
[365224794,1749547841581,-200.0,0.00017816,2]
[365224795,1749547841591,-200.0,0.00017824,2]
[365224796,1749547841602,-200.0,0.00017827,2]
[365224797,1749547841613,-1000.0,0.00017829,2]
[365224798,1749547841623,-447.0,0.0001783,5]
[365224799,1749547841634,-524.49345726,0.00017836,2]
[365224800,1749547841644,-200.0,0.00017842,2]
[365224801,1749547841654,-500.0,0.00017844,2]
[365224802,1749547841665,-178.98601929,0.00017845,2]
[365224803,1749547841675,-525.64925932,0.00017845,2]
[365224804,1749547841686,-500.0,0.00017845,2]
[365224805,1749547841696,-200.0,0.00017845,2]
[365224806,1749547841707,-336.68587298,0.00017846,2]
[365224807,1749547841717,-384.66555106,0.00017851,2]
[365224808,1749547841728,-637.0,0.00017851,2]
[365224809,1749547841739,-802.0,0.00017851,2]
[365224810,1749547841750,-2001.0,0.00017851,2]
[365224811,1749547841761,-590.0,0.00017851,2]
[365224812,1749547841775,-558.0,0.00017851,2]
[365224813,1749547841787,-1275.0,0.00017851,2]
[365224814,1749547841798,-927.0,0.00017851,2]
[365224815,1749547841809,-1256.0,0.00017851,2]
[365224816,1749547841820,-1159.0,0.00017851,2]
[365224817,1749547841830,-278.606212,0.00017851,2]
[365224818,1749547841841,-151.0,0.00017851,2]
[365224819,1749547841851,-151.0,0.00017851,2]
[365224820,1749547841862,-3330.0,0.00017851,2]
[365224821,1749547841871,-7064.0,0.00017851,2]
[365224822,1749547841882,-298.911,0.00017851,2]
[365224823,1749547841893,-945.0,0.00017851,2]
[365224824,1749547841902,-384.66555106,0.00017857,2]
[365224825,1749547841912,-200.0,0.00017864,2]
[365224826,1749547841922,-525.64925932,0.00017871,2]
[365224827,1749547841932,-200.0,0.00017879,2]
[365224828,1749547841943,-293.135,0.0001788,2]
[365224829,1749547841954,-298.77669866,0.00017887,2]
[365224830,1749547841963,-21387.6957,0.0001789,2]
[365224831,1749547841974,-151.0,0.0001789,2]
[365224832,1749547841984,-151.0,0.0001789,2]
[365224833,1749547841994,-151.0,0.0001789,2]
[365224834,1749547842003,-151.0,0.0001789,2]
[365224835,1749547842013,-151.0,0.0001789,2]
[365224836,1749547842023,-151.0,0.0001789,2]
[365224837,1749547842032,-151.0,0.0001789,2]
[365224838,1749547842042,-152.692013,0.0001789,2]
[365224839,1749547842051,-151.0,0.0001789,2]
[365224840,1749547842058,-664.335918,0.0001789,2]
[365224841,1749547842066,-664.335918,0.0001789,2]
[365224842,1749547842074,-151.0,0.0001789,2]
[365224843,1749547842083,-151.0,0.0001789,2]
[365224844,1749547842091,-151.0,0.0001789,2]
[365224845,1749547842098,-190.65067312,0.0001789,2]
[365224846,1749547842106,-151.0,0.0001789,2]
[365224847,1749547842114,-151.0,0.0001789,2]
[365224848,1749547842122,-151.0,0.0001789,2]
[365224849,1749547842133,-151.0,0.0001789,2]
[365224850,1749547842143,-151.0,0.0001789,2]
[365224851,1749547842154,-249.17560758,0.0001789,2]
[365224852,1749547842164,-524.49345726,0.0001789,2]
[365224853,1749547842175,-151.0,0.0001789,2]
[365224854,1749547842185,-219.48302284,0.0001789,2]
[365224855,1749547842197,-1619.75737576,0.0001789,2]
[365224856,1749547842207,-151.0,0.0001789,2]
[365224857,1749547842218,-1009.65245314,0.00017894,2]
[365224858,1749547842228,-1680.0,0.00017894,2]
[365224859,1749547842239,-152.0,0.00017895,5]
[365224860,1749547842249,-1864.13,0.000179,2]
[365224861,1749547842260,-151.0,0.000179,2]
[365224862,1749547842270,-151.0,0.000179,2]
[365224863,1749547842280,-151.0,0.000179,2]
[365224864,1749547842290,-151.0,0.000179,2]
[365224865,1749547842300,-151.0,0.000179,2]
[365224866,1749547842311,-151.0,0.000179,2]
[365224867,1749547842321,-194.576735,0.000179,2]
[365224868,1749547842331,-151.0,0.000179,2]
[365224869,1749547842342,-151.0,0.000179,2]
[365224870,1749547842351,-253.042834,0.000179,2]
[365224871,1749547842362,-253.042834,0.000179,2]
[365224872,1749547842372,-151.0,0.000179,2]
[365224873,1749547842382,-476.90072489,0.000179,2]
[365224874,1749547842393,-178.98601929,0.000179,2]
[365224875,1749547842403,-476.90072485,0.000179,2]
[365224876,1749547842413,-476.90072485,0.000179,2]
[365224877,1749547842424,-476.90072485,0.000179,2]
[365224878,1749547842435,-476.90072485,0.000179,2]
[365224879,1749547842445,-476.90072485,0.000179,2]
[365224880,1749547842456,-1100.0,0.000179,6]
[365224881,1749547842467,-476.90072485,0.000179,2]
[365224882,1749547842477,-476.90072485,0.000179,2]
[365224883,1749547842488,-476.90072485,0.000179,2]
[365224884,1749547842498,-476.90072485,0.000179,2]
[365224885,1749547842508,-476.90072485,0.000179,2]
[365224886,1749547842518,-476.90072485,0.000179,2]
[365224887,1749547842528,-476.90072485,0.000179,2]
[365224888,1749547842538,-476.90072485,0.000179,2]
[365224889,1749547842548,-476.90072485,0.000179,2]
[365224890,1749547842559,-476.90072485,0.000179,2]
[365224891,1749547842909,-476.90072485,0.000179,2]
[365224892,1749547842926,-476.90072485,0.000179,2]
[365224893,1749547842936,-476.90072485,0.000179,2]
[365224894,1749547842946,-476.90072485,0.000179,2]
[365224895,1749547842956,-13494.36899294,0.000179,2]
[365224896,1749547842965,-151.0,0.000179,2]
[365224897,1749547842974,-151.0,0.000179,2]
[365224898,1749547842983,-245.0,0.000179,2]
[365224899,1749547842993,-151.0,0.000179,2]
[365224900,1749547843003,-150.0,0.000179,2]
[365224901,1749547843013,-150.0,0.000179,2]
[365224902,1749547843022,-150.0,0.000179,2]
[365224903,1749547843033,-150.0,0.000179,2]
[365224904,1749547843045,-154.33,0.000179,2]
[365224905,1749547843054,-150.0,0.000179,2]
[365224906,1749547843064,-490.0,0.00017917,2]
[365224907,1749547843074,-490.0,0.00017917,2]
[365224908,1749547843083,-150.0,0.00017936,2]
[365224909,1749547843094,-150.0,0.00017936,2]
[365224910,1749547843102,-150.0,0.00017936,2]
[365224911,1749547843110,-150.0,0.00017936,2]
[365224912,1749547843118,-150.0,0.00017936,2]
[365224913,1749547843126,-150.0,0.00017936,2]
[365224914,1749547843134,-204.04309163,0.00017936,2]
[365224915,1749547843142,-150.0,0.00017936,2]
[365224916,1749547843150,-168.0,0.00017955,2]
[365224917,1749547843159,-150.0,0.00017963,2]
[365224918,1749547843169,-150.0,0.00017963,2]
[365224919,1749547843178,-150.0,0.00017963,2]
[365224920,1749547843187,-1769.85434779,0.0001797,2]
[365224921,1749547843196,-500.0,0.00017973,2]
[365224922,1749547843206,-500.0,0.00017973,2]
[365224923,1749547843215,-500.68254809,0.00017973,2]
[365224924,1749547843225,-201.55085172,0.00017973,2]
[365224925,1749547843234,-500.0,0.00017973,2]
[365224926,1749547843243,-500.0,0.00017973,2]
[365224927,1749547843253,-500.0,0.00017973,2]
[365224928,1749547843263,-545.91235564,0.00017973,2]
[365224929,1749547843272,-500.0,0.00017973,2]
[365224930,1749547843281,-500.0,0.00017973,2]
[365224931,1749547843290,-163.04973825,0.00017973,2]
[365224932,1749547843300,-267.63301061,0.00017973,2]
[365224934,1749547843310,-500.0,0.00017973,2]
[365224936,1749547843319,-452.00655032,0.00017973,2]
[365224938,1749547843328,-500.0,0.00017973,2]
[365224940,1749547843337,-317.54218838,0.00017973,2]
[365224942,1749547843346,-161.40784034,0.00017973,2]
[365224944,1749547843356,-606.9025178,0.00017973,2]
[365224945,1749547843365,-500.0,0.00017973,2]
[365224947,1749547843374,-500.0,0.00017973,2]
[365224949,1749547843383,-500.0,0.00017973,2]
[365224950,1749547843393,-500.0,0.00017973,2]
[365224951,1749547843402,-528.79315848,0.00017973,2]
[365224952,1749547843411,-500.0,0.00017973,2]
[365224953,1749547843422,-500.0,0.00017973,2]
[365224954,1749547843431,-500.0,0.00017973,2]
[365224955,1749547843440,-151.0,0.00017973,2]
[365224956,1749547843450,-151.0,0.00017973,2]
[365224957,1749547843460,-151.628595,0.00017973,2]
[365224958,1749547843469,-151.0,0.00017973,2]
[365224959,1749547843479,-151.0,0.00017986,2]
[365224960,1749547843490,-151.0,0.00017986,2]
[365224961,1749547843499,-300.0,0.00017986,2]
[365224962,1749547843509,-32555.382,0.00017986,2]
[365224963,1749547843518,-1099.4937435,0.00017986,2]
[365224964,1749547843527,-151.0,0.00017986,2]
[365224965,1749547843536,-300.0,0.00017986,2]
[365224966,1749547843545,-6698.7730077,0.00017986,2]
[365224967,1749547843555,-151.0,0.00017986,2]
[365224968,1749547843564,-1748.385559,0.00017986,2]
[365224969,1749547843574,-1748.385559,0.00017986,2]
[365224970,1749547843583,-151.0,0.00017986,2]
[365224971,1749547843592,-151.0,0.00017986,2]
[365224972,1749547843601,-212.867511,0.00017986,2]
[365224973,1749547843611,-14345.4074999,0.00017986,2]
[365224974,1749547843620,-212.867511,0.00017986,2]
[365224975,1749547843630,-191.376881,0.00017986,2]
[365224976,1749547843640,-151.0,0.00017986,2]
[365224977,1749547843649,-191.376881,0.00017986,2]
[365224978,1749547843659,-9034.0450644,0.00017986,2]
[365224979,1749547843669,-151.0,0.00017986,2]
[365224980,1749547843678,-151.0,0.00017986,2]
[365224981,1749547843688,-151.0,0.00017986,2]
[365224982,1749547843697,-151.0,0.00017986,2]
[365224983,1749547843707,-151.0,0.00017986,2]
[365224984,1749547843716,-151.0,0.00017986,2]
[365224985,1749547843727,-151.0,0.00017986,2]
[365224986,1749547843737,-151.0,0.00017987,2]
[365224987,1749547843747,-151.308029,0.00017987,2]
[365224988,1749547843757,-151.0,0.00017987,2]
[365224989,1749547843769,-151.0,0.00017987,2]
[365224990,1749547843779,-331.114604,0.00017987,2]
[365224991,1749547843789,-331.114604,0.00017987,2]
[365224992,1749547843799,-151.0,0.00017987,2]
[365224993,1749547843808,-151.0,0.00017987,2]
[365224994,1749547843819,-151.0,0.00017987,2]
[365224995,1749547843828,-151.0,0.00017987,2]
[365224996,1749547843838,-178.767474,0.00017987,2]
[365224998,1749547843849,-151.0,0.00017987,2]
[365224999,1749547843859,-151.0,0.00017987,2]
[365225000,1749547843869,-151.0,0.00017987,2]
[365225001,1749547843878,-151.0,0.00017987,2]
[365225002,1749547843887,-151.0,0.00017987,2]
[365225003,1749547843897,-151.0,0.00017987,2]
[365225004,1749547843907,-151.0,0.00017987,2]
[365225005,1749547843917,-151.0,0.00017987,2]
[365225006,1749547843926,-151.0,0.00017987,2]
[365225007,1749547843936,-151.0,0.00017987,2]
[365225008,1749547843946,-664.335918,0.00017987,2]
[365225009,1749547843956,-664.335918,0.00017987,2]
[365225010,1749547843966,-151.692656,0.00017987,2]
[365225011,1749547843975,-153.276411,0.00017987,2]
[365225012,1749547843984,-151.0,0.00017987,2]
[365225013,1749547843993,-151.0,0.00017987,2]
[365225014,1749547844003,-151.0,0.00017987,2]
[365225015,1749547844013,-151.0,0.00017987,2]
[365225017,1749547844022,-151.0,0.00017987,2]
[365225019,1749547844031,-151.0,0.00017987,2]
[365225021,1749547844041,-151.0,0.00017987,2]
[365225023,1749547844050,-151.0,0.00017987,2]
[365225025,1749547844060,-151.0,0.00017987,2]
[365225027,1749547844069,-151.0,0.00017987,2]
[365225028,1749547844078,-151.0,0.00017987,2]
[365225029,1749547844088,-299.697834,0.00017987,2]
[365225030,1749547844097,-151.0,0.00017987,2]
[365225032,1749547844106,-299.697834,0.00017987,2]
[365225033,1749547844116,-151.0,0.00017987,2]
[365225034,1749547844125,-151.0,0.00017987,2]
[365225035,1749547844134,-365.248636,0.00017987,2]
[365225036,1749547844143,-151.0,0.00017987,2]
[365225037,1749547844153,-365.248636,0.00017987,2]
[365225038,1749547844163,-151.0,0.00017987,2]
[365225039,1749547844172,-151.0,0.00017987,2]
[365225040,1749547844182,-35158.5625333,0.00017987,2]
[365225041,1749547844191,-37761.7430666,0.00017987,2]
[365225042,1749547844200,-40364.9235999,0.00017987,2]
[365225043,1749547844210,-828.089793,0.00017987,2]
[365225044,1749547844219,-828.089793,0.00017987,2]
[365225045,1749547844228,-1187.4110258,0.00017987,2]
[365225046,1749547844238,-1275.3283081,0.00017987,2]
[365225047,1749547844248,-1363.2455904,0.00017987,2]
[365225048,1749547844257,-151.0,0.00017987,2]
[365225049,1749547844266,-151.0,0.00017987,2]
[365225050,1749547844275,-7234.417636,0.00017987,2]
[365225051,1749547844285,-7770.0622643,0.00017987,2]
[365225052,1749547844294,-8305.7068926,0.00017987,2]
[365225053,1749547844303,-151.0,0.00017987,2]
[365225054,1749547844313,-1748.385559,0.00017987,2]
[365225055,1749547844322,-1748.385559,0.00017987,2]
[365225056,1749547844331,-151.0,0.00017987,2]
[365225057,1749547844341,-151.0,0.00017987,2]
[365225058,1749547844350,-151.0,0.00017987,2]
[365225059,1749547844359,-212.867511,0.00017987,2]
[365225060,1749547844369,-212.867511,0.00017987,2]
[365225061,1749547844379,-278.073399,0.00017987,2]
[365225062,1749547844388,-278.073399,0.00017987,2]
[365225063,1749547844398,-191.376881,0.00017987,2]
[365225064,1749547844408,-191.376881,0.00017987,2]
[365225065,1749547844417,-151.0,0.00017987,2]
[365225066,1749547844426,-151.0,0.00017987,2]
[365225067,1749547844435,-151.0,0.00017987,2]
[365225068,1749547844445,-151.0,0.00017987,2]
[365225069,1749547844454,-151.0,0.00017987,2]
[365225070,1749547844463,-151.0,0.00017987,2]
[365225071,1749547844473,-201.350577,0.00017987,2]
[365225072,1749547844483,-151.0,0.00017987,2]
[365225073,1749547844492,-154.163304,0.00017987,2]
[365225074,1749547844502,-151.0,0.00017987,2]
[365225075,1749547844511,-151.0,0.00017987,2]
[365225076,1749547844521,-159.999634,0.00017987,2]
[365225077,1749547844530,-151.0,0.00017987,2]
[365225078,1749547844539,-151.0,0.00017987,2]
[365225079,1749547844549,-151.0,0.00017987,2]
[365225080,1749547844559,-151.0,0.00017987,2]
[365225081,1749547844568,-151.0,0.00017989,2]
[365225082,1749547844578,-151.0,0.00017989,2]
[365225083,1749547844587,-151.0,0.00017989,2]
[365225084,1749547844596,-151.0,0.00017989,2]
[365225085,1749547844606,-151.0,0.00017989,2]
[365225086,1749547844615,-151.0,0.00017989,2]
[365225087,1749547844625,-151.0,0.00017989,2]
[365225088,1749547844635,-151.0,0.00017989,2]
[365225089,1749547844644,-151.0,0.00017989,2]
[365225090,1749547844654,-151.0,0.00017989,2]